[Event "*** SCC Grand Prix: Titled Tuesday Blitz"]
[Site "Chess.com"]
[Date "2020.10.06"]
[Round "6"]
[White "dominikaf"]
[Black "WildTricks"]
[Result "0-1"]
[WhiteElo "2257"]
[BlackElo "2441"]
[TimeControl "180+1"]
[EndTime "11:08:14 PDT"]
[Termination "WildTricks won on time"]

1. d4 {[%clk 0:03:00.9]} 1... Nf6 {[%clk 0:02:58.7]} 2. Bf4 {[%clk 0:03:01.3]}
2... c5 {[%clk 0:02:58]} 3. e3 {[%clk 0:03:01.4]} 3... Qb6 {[%clk 0:02:55.5]} 4.
Nc3 {[%clk 0:03:00.5]} 4... cxd4 {[%clk 0:02:53.6]} 5. exd4 {[%clk 0:03:00.3]}
5... d5 {[%clk 0:02:52.3]} 6. Nb5 {[%clk 0:02:53.5]} 6... Na6 {[%clk 0:02:51.3]}
7. c3 {[%clk 0:02:51.8]} 7... Bd7 {[%clk 0:02:40.5]} 8. a4 {[%clk 0:02:51.5]}
8... g6 {[%clk 0:02:25.1]} 9. Bd3 {[%clk 0:02:31.2]} 9... Bg7 {[%clk 0:02:20.6]}
10. h4 {[%clk 0:02:28.3]} 10... O-O {[%clk 0:02:06.6]} 11. h5 {[%clk 0:02:27.6]}
11... Bg4 {[%clk 0:02:02.4]} 12. f3 {[%clk 0:02:26.7]} 12... Nxh5 {[%clk
0:02:02]} 13. Rxh5 {[%clk 0:02:08.8]} 13... Bxh5 {[%clk 0:02:02.9]} 14. Qe2
{[%clk 0:01:39]} 14... e5 {[%clk 0:01:58.4]} 15. a5 {[%clk 0:01:33.6]} 15... Qf6
{[%clk 0:01:31]} 16. Bxe5 {[%clk 0:01:27.9]} 16... Qh4+ {[%clk 0:01:30.4]} 17.
g3 {[%clk 0:01:23.3]} 17... Qh1 {[%clk 0:01:29.1]} 18. O-O-O {[%clk 0:01:16.3]}
18... Rfe8 {[%clk 0:01:17.2]} 19. Qf2 {[%clk 0:01:07.9]} 19... Bxe5 {[%clk
0:00:25.3]} 20. dxe5 {[%clk 0:01:01.9]} 20... g5 {[%clk 0:00:23.8]} 21. g4
{[%clk 0:00:13.7]} 21... Bg6 {[%clk 0:00:20.7]} 22. Ne2 {[%clk 0:00:11.1]} 22...
Qh3 {[%clk 0:00:17.5]} 23. Bxg6 {[%clk 0:00:09.8]} 23... hxg6 {[%clk 0:00:18.4]}
24. Ng3 {[%clk 0:00:07.6]} 24... Qh8 {[%clk 0:00:17.6]} 25. f4 {[%clk
0:00:04.5]} 25... gxf4 {[%clk 0:00:16.8]} 26. Qxf4 {[%clk 0:00:05.4]} 26... Qxe5
{[%clk 0:00:16]} 27. Qf2 {[%clk 0:00:05]} 27... Qe3+ {[%clk 0:00:15.5]} 28. Qxe3
{[%clk 0:00:05.1]} 28... Rxe3 {[%clk 0:00:16.4]} 29. Nf1 {[%clk 0:00:05.3]}
29... Rf3 {[%clk 0:00:15.8]} 30. Nd2 {[%clk 0:00:05.1]} 30... Rf4 {[%clk
0:00:15.7]} 31. Nb3 {[%clk 0:00:04.4]} 31... Rd8 {[%clk 0:00:15]} 32. N3d4
{[%clk 0:00:03.7]} 32... Rxg4 {[%clk 0:00:14.9]} 33. Na3 {[%clk 0:00:03]} 33...
Nc5 {[%clk 0:00:14.8]} 34. Nac2 {[%clk 0:00:02.4]} 34... Rg2 {[%clk 0:00:14]}
35. Ne3 {[%clk 0:00:01.9]} 35... Rf2 {[%clk 0:00:12.8]} 36. b4 {[%clk 0:00:01]}
36... Ne4 {[%clk 0:00:12.6]} 0-1

[Event "*** SCC Grand Prix: Titled Tuesday Blitz"]
[Site "Chess.com"]
[Date "2020.10.06"]
[Round "6"]
[White "Fighter008"]
[Black "pastouche06"]
[Result "1-0"]
[WhiteElo "2627"]
[BlackElo "2478"]
[TimeControl "180+1"]
[EndTime "11:08:16 PDT"]
[Termination "Fighter008 won by resignation"]

1. e4 {[%clk 0:03:00.9]} 1... c6 {[%clk 0:03:00]} 2. Nc3 {[%clk 0:03:00.4]} 2...
d5 {[%clk 0:03:00.9]} 3. g3 {[%clk 0:03:00.8]} 3... d4 {[%clk 0:02:58.4]} 4.
Nce2 {[%clk 0:02:58.7]} 4... e5 {[%clk 0:02:58.6]} 5. d3 {[%clk 0:02:58.7]} 5...
c5 {[%clk 0:02:57.9]} 6. Bg2 {[%clk 0:02:59]} 6... Nc6 {[%clk 0:02:57.5]} 7. Nf3
{[%clk 0:02:59.2]} 7... Nge7 {[%clk 0:02:47.3]} 8. O-O {[%clk 0:02:58.1]} 8...
Ng6 {[%clk 0:02:47.4]} 9. h4 {[%clk 0:02:55]} 9... Be7 {[%clk 0:02:46.8]} 10. h5
{[%clk 0:02:54.3]} 10... Nf8 {[%clk 0:02:47]} 11. Nh2 {[%clk 0:02:52.3]} 11...
Nd7 {[%clk 0:02:21.8]} 12. f4 {[%clk 0:02:50.7]} 12... exf4 {[%clk 0:02:21.7]}
13. gxf4 {[%clk 0:02:50.4]} 13... O-O {[%clk 0:02:19.8]} 14. Ng3 {[%clk
0:02:48.5]} 14... Nf6 {[%clk 0:02:12.3]} 15. Qf3 {[%clk 0:02:34.4]} 15... Be6
{[%clk 0:02:06.5]} 16. f5 {[%clk 0:02:32.6]} 16... Bc8 {[%clk 0:02:02.7]} 17.
Bf4 {[%clk 0:02:30.8]} 17... Bd6 {[%clk 0:02:01.5]} 18. h6 {[%clk 0:02:29.3]}
18... Qc7 {[%clk 0:01:33.5]} 19. Ng4 {[%clk 0:02:14.4]} 19... Bxf4 {[%clk
0:01:23.8]} 20. Nxf6+ {[%clk 0:02:13]} 20... gxf6 {[%clk 0:01:24.1]} 21. Qxf4
{[%clk 0:01:58.9]} 21... Qxf4 {[%clk 0:01:24.6]} 22. Rxf4 {[%clk 0:01:59.8]}
22... Ne5 {[%clk 0:01:25]} 23. Nh5 {[%clk 0:01:58.5]} 23... Rd8 {[%clk
0:01:13.5]} 24. Nxf6+ {[%clk 0:01:58.1]} 24... Kh8 {[%clk 0:01:14.1]} 25. Kf2
{[%clk 0:01:54.4]} 25... Rd6 {[%clk 0:01:10.8]} 26. Ng4 {[%clk 0:01:41.3]} 26...
Nxg4+ {[%clk 0:01:10.5]} 27. Rxg4 {[%clk 0:01:42.2]} 27... Rxh6 {[%clk 0:01:11]}
28. Rg1 {[%clk 0:01:36]} 28... f6 {[%clk 0:01:07.3]} 29. Bf3 {[%clk 0:01:32.5]}
29... Bd7 {[%clk 0:01:04.6]} 30. Rg7 {[%clk 0:01:31]} 30... Bc6 {[%clk
0:01:03.9]} 31. Rf7 {[%clk 0:01:31]} 31... Rg8 {[%clk 0:01:01.8]} 32. Rxg8+
{[%clk 0:01:27.3]} 32... Kxg8 {[%clk 0:01:02.7]} 33. Rc7 {[%clk 0:01:27.5]}
33... Rh2+ {[%clk 0:00:52.6]} 34. Bg2 {[%clk 0:01:27]} 34... Rh5 {[%clk
0:00:53.2]} 35. c3 {[%clk 0:01:16]} 35... dxc3 {[%clk 0:00:47.6]} 36. bxc3
{[%clk 0:01:16.9]} 36... Rg5 {[%clk 0:00:47.9]} 37. Bf3 {[%clk 0:01:16.7]} 37...
Rg7 {[%clk 0:00:46]} 38. Rc8+ {[%clk 0:01:16.8]} 38... Kf7 {[%clk 0:00:46.4]}
39. d4 {[%clk 0:01:17.1]} 39... cxd4 {[%clk 0:00:43.9]} 40. cxd4 {[%clk
0:01:18]} 40... Rg8 {[%clk 0:00:23.1]} 41. Rc7+ {[%clk 0:01:14.6]} 41... Ke8
{[%clk 0:00:23.5]} 42. Rxh7 {[%clk 0:01:13.2]} 42... Bd7 {[%clk 0:00:20.3]} 43.
Ke3 {[%clk 0:01:08.6]} 43... b5 {[%clk 0:00:20.3]} 44. Kf4 {[%clk 0:01:07.7]}
44... Rg5 {[%clk 0:00:18.6]} 45. Bh5+ {[%clk 0:01:01.1]} 45... Kd8 {[%clk
0:00:17.6]} 46. Bg6 {[%clk 0:01:00.1]} 46... Rg2 {[%clk 0:00:17.4]} 47. e5
{[%clk 0:00:52.9]} 47... fxe5+ {[%clk 0:00:16.5]} 48. dxe5 {[%clk 0:00:52.9]}
48... Rxa2 {[%clk 0:00:17.1]} 49. e6 {[%clk 0:00:51.4]} 49... Bc6 {[%clk
0:00:16.4]} 50. e7+ {[%clk 0:00:49.3]} 50... Kc8 {[%clk 0:00:16.7]} 51. e8=Q+
{[%clk 0:00:45.6]} 51... Bxe8 {[%clk 0:00:16.8]} 52. Bxe8 {[%clk 0:00:46.5]}
52... b4 {[%clk 0:00:17]} 53. Bf7 {[%clk 0:00:45.8]} 53... Ra4 {[%clk 0:00:17]}
54. Be6+ {[%clk 0:00:45.2]} 54... Kd8 {[%clk 0:00:16.9]} 55. Ke5 {[%clk
0:00:45.4]} 1-0

[Event "*** SCC Grand Prix: Titled Tuesday Blitz"]
[Site "Chess.com"]
[Date "2020.10.06"]
[Round "6"]
[White "bocah_sakit"]
[Black "Margency"]
[Result "1/2-1/2"]
[WhiteElo "2820"]
[BlackElo "2663"]
[TimeControl "180+1"]
[EndTime "11:08:17 PDT"]
[Termination "Game drawn by repetition"]

1. e4 {[%clk 0:03:00.9]} 1... c5 {[%clk 0:02:59.4]} 2. Nf3 {[%clk 0:03:01]} 2...
d6 {[%clk 0:03:00]} 3. d4 {[%clk 0:03:01.4]} 3... cxd4 {[%clk 0:03:00.9]} 4.
Nxd4 {[%clk 0:03:02.3]} 4... Nf6 {[%clk 0:03:01.5]} 5. Nc3 {[%clk 0:03:02.9]}
5... a6 {[%clk 0:03:02.1]} 6. Bg5 {[%clk 0:03:03.6]} 6... e6 {[%clk 0:03:02.4]}
7. f4 {[%clk 0:03:04.3]} 7... Qb6 {[%clk 0:03:02.9]} 8. Qd2 {[%clk 0:03:01.7]}
8... Nc6 {[%clk 0:03:00.9]} 9. Nb3 {[%clk 0:02:55.1]} 9... Ng4 {[%clk
0:03:00.4]} 10. f5 {[%clk 0:02:47]} 10... h6 {[%clk 0:02:54]} 11. Bh4 {[%clk
0:02:46.2]} 11... Qe3+ {[%clk 0:02:48.8]} 12. Be2 {[%clk 0:02:31]} 12... Be7
{[%clk 0:02:45.6]} 13. Bxe7 {[%clk 0:01:47.6]} 13... Kxe7 {[%clk 0:02:11.8]} 14.
O-O-O {[%clk 0:01:39.6]} 14... Qxd2+ {[%clk 0:01:55.5]} 15. Rxd2 {[%clk
0:01:40.5]} 15... Nge5 {[%clk 0:01:55.8]} 16. Rhd1 {[%clk 0:01:37.8]} 16... Rd8
{[%clk 0:01:56.3]} 17. a4 {[%clk 0:01:31.8]} 17... b6 {[%clk 0:01:49.7]} 18.
fxe6 {[%clk 0:01:28]} 18... fxe6 {[%clk 0:01:47.9]} 19. Nd4 {[%clk 0:01:24.9]}
19... Bb7 {[%clk 0:01:39.5]} 20. Nxc6+ {[%clk 0:01:12.7]} 20... Bxc6 {[%clk
0:01:39.3]} 21. b3 {[%clk 0:01:10.1]} 21... Bb7 {[%clk 0:01:26.5]} 22. Kb2
{[%clk 0:01:10.4]} 22... Rac8 {[%clk 0:01:25.5]} 23. Rd4 {[%clk 0:01:06.8]}
23... Rc6 {[%clk 0:01:16.6]} 24. Na2 {[%clk 0:01:02.6]} 24... a5 {[%clk
0:01:08.7]} 25. R1d2 {[%clk 0:00:55.8]} 25... Rc5 {[%clk 0:01:07.3]} 26. Nc3
{[%clk 0:00:52.7]} 26... Bc6 {[%clk 0:01:03.6]} 27. Bb5 {[%clk 0:00:52]} 27...
Bb7 {[%clk 0:01:00.4]} 28. Be2 {[%clk 0:00:52.2]} 28... Bc6 {[%clk 0:01:00.4]}
29. h3 {[%clk 0:00:44.4]} 29... g5 {[%clk 0:00:59.1]} 30. g3 {[%clk 0:00:43.5]}
30... Be8 {[%clk 0:00:55.5]} 31. h4 {[%clk 0:00:41.4]} 31... Bg6 {[%clk
0:00:51.6]} 32. Nb5 {[%clk 0:00:36.9]} 32... Rc6 {[%clk 0:00:49.5]} 33. Na7
{[%clk 0:00:35.8]} 33... Rc7 {[%clk 0:00:47.6]} 34. Nb5 {[%clk 0:00:36.5]} 34...
Rc6 {[%clk 0:00:47.9]} 35. c3 {[%clk 0:00:30.8]} 35... Be8 {[%clk 0:00:44.3]}
36. b4 {[%clk 0:00:30.8]} 36... Nf7 {[%clk 0:00:41.6]} 37. Bh5 {[%clk
0:00:29.3]} 37... Ne5 {[%clk 0:00:23.7]} 38. Be2 {[%clk 0:00:29.7]} 38... Bf7
{[%clk 0:00:17.9]} 39. Rd1 {[%clk 0:00:25]} 39... Bg6 {[%clk 0:00:17.6]} 40.
hxg5 {[%clk 0:00:23.2]} 40... hxg5 {[%clk 0:00:18]} 41. Rh1 {[%clk 0:00:24]}
41... Nf7 {[%clk 0:00:18.3]} 42. Bf3 {[%clk 0:00:17.9]} 42... Ne5 {[%clk
0:00:18]} 43. Be2 {[%clk 0:00:18]} 43... Nf7 {[%clk 0:00:18.6]} 44. Na7 {[%clk
0:00:14.8]} 44... Rc7 {[%clk 0:00:18.5]} 45. Nb5 {[%clk 0:00:15.7]} 45... Rc6
{[%clk 0:00:19]} 1/2-1/2

[Event "*** SCC Grand Prix: Titled Tuesday Blitz"]
[Site "Chess.com"]
[Date "2020.10.06"]
[Round "6"]
[White "chito89"]
[Black "chessdjw"]
[Result "1-0"]
[WhiteElo "2819"]
[BlackElo "2640"]
[TimeControl "180+1"]
[EndTime "11:08:18 PDT"]
[Termination "chito89 won on time"]

1. e4 {[%clk 0:02:55.7]} 1... c5 {[%clk 0:03:00.2]} 2. Nf3 {[%clk 0:02:55.3]}
2... d6 {[%clk 0:03:00.6]} 3. d4 {[%clk 0:02:54.4]} 3... cxd4 {[%clk 0:03:01.5]}
4. Nxd4 {[%clk 0:02:55.3]} 4... Nf6 {[%clk 0:03:01.6]} 5. Nc3 {[%clk 0:02:48.2]}
5... a6 {[%clk 0:03:01.6]} 6. h3 {[%clk 0:02:47.7]} 6... e5 {[%clk 0:02:58]} 7.
Nb3 {[%clk 0:02:45.7]} 7... Be7 {[%clk 0:02:43.8]} 8. Bg5 {[%clk 0:02:42.5]}
8... Be6 {[%clk 0:02:38.6]} 9. Qf3 {[%clk 0:02:21.9]} 9... Nbd7 {[%clk
0:02:32.8]} 10. O-O-O {[%clk 0:02:17.9]} 10... b5 {[%clk 0:02:30.2]} 11. Kb1
{[%clk 0:02:15.6]} 11... O-O {[%clk 0:02:12.4]} 12. g4 {[%clk 0:02:13.9]} 12...
b4 {[%clk 0:02:08.4]} 13. Nd5 {[%clk 0:01:59.2]} 13... Nxd5 {[%clk 0:01:33.2]}
14. exd5 {[%clk 0:02:00.1]} 14... Bxg5 {[%clk 0:01:33]} 15. dxe6 {[%clk
0:02:00.8]} 15... fxe6 {[%clk 0:01:33.7]} 16. Qc6 {[%clk 0:02:01.5]} 16... Be7
{[%clk 0:01:25.8]} 17. Bc4 {[%clk 0:02:00.4]} 17... Rf6 {[%clk 0:01:04.7]} 18.
g5 {[%clk 0:01:59.8]} 18... Rg6 {[%clk 0:01:04.6]} 19. h4 {[%clk 0:01:58.9]}
19... Rc8 {[%clk 0:00:46.7]} 20. Qxa6 {[%clk 0:01:48.2]} 20... d5 {[%clk
0:00:45]} 21. Bd3 {[%clk 0:01:07.1]} 21... e4 {[%clk 0:00:44.5]} 22. Bxe4 {[%clk
0:01:07.7]} 22... dxe4 {[%clk 0:00:39.1]} 23. h5 {[%clk 0:01:08.2]} 23... Rxg5
{[%clk 0:00:11.7]} 24. Qxe6+ {[%clk 0:01:07.5]} 24... Kh8 {[%clk 0:00:11]} 25.
Rxd7 {[%clk 0:01:08]} 25... Qf8 {[%clk 0:00:05.7]} 26. Rxe7 {[%clk 0:01:02.1]}
26... h6 {[%clk 0:00:02.8]} 27. Qxe4 {[%clk 0:00:55.5]} 27... Qxf2 {[%clk
0:00:01.8]} 28. Re8+ {[%clk 0:00:55.9]} 28... Rxe8 {[%clk 0:00:02]} 29. Qxe8+
{[%clk 0:00:56.8]} 29... Kh7 {[%clk 0:00:02.9]} 30. Qe4+ {[%clk 0:00:48]} 30...
Kh8 {[%clk 0:00:03.3]} 31. Rd1 {[%clk 0:00:43.8]} 31... Rg1 {[%clk 0:00:03.2]}
32. Rxg1 {[%clk 0:00:43.6]} 32... Qxg1+ {[%clk 0:00:04.1]} 33. Nc1 {[%clk
0:00:44.2]} 33... Qb6 {[%clk 0:00:03.2]} 34. b3 {[%clk 0:00:42.3]} 34... Qb5
{[%clk 0:00:03.1]} 35. Qg6 {[%clk 0:00:38.6]} 35... Qc5 {[%clk 0:00:03.1]} 36.
Nd3 {[%clk 0:00:35.3]} 36... Qc3 {[%clk 0:00:03.5]} 37. Qe8+ {[%clk 0:00:33.7]}
37... Kh7 {[%clk 0:00:03.4]} 38. Qe4+ {[%clk 0:00:34.6]} 38... Kh8 {[%clk
0:00:02.7]} 39. Nxb4 {[%clk 0:00:35.1]} 39... Qd2 {[%clk 0:00:02.2]} 40. Kb2
{[%clk 0:00:33.8]} 40... Qd1 {[%clk 0:00:02]} 41. Nd5 {[%clk 0:00:26.2]} 41...
Qxh5 {[%clk 0:00:01.2]} 42. Ne7 {[%clk 0:00:26.8]} 1-0

[Event "*** SCC Grand Prix: Titled Tuesday Blitz"]
[Site "Chess.com"]
[Date "2020.10.06"]
[Round "6"]
[White "NikolaGry"]
[Black "r31415"]
[Result "1-0"]
[WhiteElo "2620"]
[BlackElo "2476"]
[TimeControl "180+1"]
[EndTime "11:08:18 PDT"]
[Termination "NikolaGry won by resignation"]

1. e4 {[%clk 0:03:00.9]} 1... e5 {[%clk 0:02:59.6]} 2. Nf3 {[%clk 0:03:00.6]}
2... Nc6 {[%clk 0:02:59.6]} 3. Bb5 {[%clk 0:03:00.2]} 3... Nf6 {[%clk 0:03:00]}
4. d3 {[%clk 0:02:57.2]} 4... Ne7 {[%clk 0:03:00.3]} 5. O-O {[%clk 0:02:54.9]}
5... c6 {[%clk 0:03:00.3]} 6. Ba4 {[%clk 0:02:54.9]} 6... d6 {[%clk 0:03:00]} 7.
h3 {[%clk 0:02:52.2]} 7... Ng6 {[%clk 0:02:59.8]} 8. c3 {[%clk 0:02:51.2]} 8...
Be7 {[%clk 0:03:00.2]} 9. Re1 {[%clk 0:02:50.6]} 9... O-O {[%clk 0:03:00.5]} 10.
Nbd2 {[%clk 0:02:50.8]} 10... h6 {[%clk 0:02:53.2]} 11. Nf1 {[%clk 0:02:49.4]}
11... Re8 {[%clk 0:02:48]} 12. Bb3 {[%clk 0:02:46.6]} 12... Bf8 {[%clk
0:02:45.9]} 13. Ng3 {[%clk 0:02:46]} 13... Qc7 {[%clk 0:02:43.2]} 14. d4 {[%clk
0:02:39.1]} 14... Be6 {[%clk 0:02:42.3]} 15. Bd2 {[%clk 0:02:31]} 15... Rad8
{[%clk 0:02:34.5]} 16. Qc2 {[%clk 0:02:24.2]} 16... Bc8 {[%clk 0:02:27.7]} 17.
Rad1 {[%clk 0:02:21.4]} 17... b5 {[%clk 0:02:26.8]} 18. a4 {[%clk 0:02:18.9]}
18... a6 {[%clk 0:02:25.9]} 19. Bc1 {[%clk 0:02:05.6]} 19... Bb7 {[%clk
0:02:15]} 20. c4 {[%clk 0:01:44.7]} 20... Qb6 {[%clk 0:01:56.6]} 21. c5 {[%clk
0:01:38.4]} 21... dxc5 {[%clk 0:01:54.7]} 22. dxe5 {[%clk 0:01:38.4]} 22... Rxd1
{[%clk 0:01:53.9]} 23. Rxd1 {[%clk 0:01:37.1]} 23... Nxe5 {[%clk 0:01:53.8]} 24.
Nxe5 {[%clk 0:01:30.4]} 24... Rxe5 {[%clk 0:01:54.7]} 25. Bf4 {[%clk 0:01:27.3]}
25... Re8 {[%clk 0:01:53.8]} 26. Be3 {[%clk 0:01:26.2]} 26... Qa5 {[%clk
0:01:47]} 27. Bxc5 {[%clk 0:01:10.2]} 27... bxa4 {[%clk 0:01:46.9]} 28. Bxf8
{[%clk 0:01:09.8]} 28... axb3 {[%clk 0:01:25.3]} 29. Qxb3 {[%clk 0:01:09.9]}
29... Kxf8 {[%clk 0:01:26]} 30. Qxb7 {[%clk 0:01:07.6]} 30... Nxe4 {[%clk
0:01:13.7]} 31. Rd7 {[%clk 0:00:29.8]} 31... Qe1+ {[%clk 0:01:02.1]} 32. Kh2
{[%clk 0:00:27.9]} 32... Qxf2 {[%clk 0:00:56.8]} 33. Nxe4 {[%clk 0:00:21.8]}
33... Rxe4 {[%clk 0:00:56.8]} 34. Rd8+ {[%clk 0:00:21.7]} 34... Re8 {[%clk
0:00:54.9]} 35. Rxe8+ {[%clk 0:00:22.1]} 35... Kxe8 {[%clk 0:00:54]} 36. Qc8+
{[%clk 0:00:22.5]} 36... Ke7 {[%clk 0:00:53.3]} 37. Qc7+ {[%clk 0:00:21.4]}
37... Ke8 {[%clk 0:00:53.4]} 38. Qxc6+ {[%clk 0:00:20.6]} 38... Kf8 {[%clk
0:00:52.1]} 39. Qc8+ {[%clk 0:00:20]} 39... Ke7 {[%clk 0:00:52.5]} 40. Qc7+
{[%clk 0:00:20.3]} 40... Kf6 {[%clk 0:00:49.4]} 41. Qc6+ {[%clk 0:00:17.9]}
41... Kg5 {[%clk 0:00:48]} 42. Qxa6 {[%clk 0:00:17.8]} 42... Qf4+ {[%clk
0:00:45.1]} 43. Kh1 {[%clk 0:00:17]} 43... Qc1+ {[%clk 0:00:45.2]} 44. Kh2
{[%clk 0:00:17.3]} 44... Qxb2 {[%clk 0:00:46.1]} 45. Qc8 {[%clk 0:00:16.7]}
45... Qe5+ {[%clk 0:00:45.3]} 46. Kh1 {[%clk 0:00:16.6]} 46... f5 {[%clk
0:00:46]} 47. Qc1+ {[%clk 0:00:15.9]} 47... Qf4 {[%clk 0:00:45.1]} 48. Qc6
{[%clk 0:00:13.2]} 48... g6 {[%clk 0:00:44.3]} 49. Qd7 {[%clk 0:00:12.4]} 49...
Qe5 {[%clk 0:00:39.7]} 50. Qd8+ {[%clk 0:00:11.5]} 50... Kh5 {[%clk 0:00:39.3]}
51. Qd1+ {[%clk 0:00:11.4]} 51... Kg5 {[%clk 0:00:38.6]} 52. Qd8+ {[%clk
0:00:11.2]} 52... Qf6 {[%clk 0:00:38.9]} 53. h4+ {[%clk 0:00:10.2]} 1-0

[Event "*** SCC Grand Prix: Titled Tuesday Blitz"]
[Site "Chess.com"]
[Date "2020.10.06"]
[Round "6"]
[White "zurzan"]
[Black "zajka-molotok"]
[Result "0-1"]
[WhiteElo "1945"]
[BlackElo "2473"]
[TimeControl "180+1"]
[EndTime "11:08:21 PDT"]
[Termination "zajka-molotok won on time"]

1. f4 {[%clk 0:03:00.9]} 1... d5 {[%clk 0:02:58.4]} 2. Nf3 {[%clk 0:03:00.8]}
2... c5 {[%clk 0:02:58]} 3. g3 {[%clk 0:03:01.3]} 3... Nc6 {[%clk 0:02:58.1]} 4.
Bg2 {[%clk 0:03:02.2]} 4... g6 {[%clk 0:02:58.1]} 5. O-O {[%clk 0:03:03.1]} 5...
Bg7 {[%clk 0:02:58.4]} 6. d3 {[%clk 0:03:04]} 6... Nf6 {[%clk 0:02:56.9]} 7. c3
{[%clk 0:03:04.9]} 7... O-O {[%clk 0:02:48]} 8. Na3 {[%clk 0:03:05.2]} 8... d4
{[%clk 0:02:40.2]} 9. e4 {[%clk 0:02:56.2]} 9... dxe3 {[%clk 0:02:14.6]} 10.
Bxe3 {[%clk 0:02:56.1]} 10... Bf5 {[%clk 0:02:14.3]} 11. d4 {[%clk 0:02:48.8]}
11... Ng4 {[%clk 0:02:06.6]} 12. Qe2 {[%clk 0:02:21.5]} 12... Nxe3 {[%clk
0:02:05.1]} 13. Qxe3 {[%clk 0:02:20]} 13... cxd4 {[%clk 0:02:05.1]} 14. cxd4
{[%clk 0:02:17.2]} 14... Nxd4 {[%clk 0:02:05]} 15. Rfd1 {[%clk 0:02:12.2]} 15...
Nxf3+ {[%clk 0:02:01.6]} 16. Qxf3 {[%clk 0:02:10.9]} 16... Qb6+ {[%clk
0:01:55.7]} 17. Kh1 {[%clk 0:02:08.5]} 17... Qxb2 {[%clk 0:01:54.3]} 18. g4
{[%clk 0:02:05.6]} 18... Bxg4 {[%clk 0:01:39]} 19. Qxg4 {[%clk 0:02:04.8]} 19...
Qxa3 {[%clk 0:01:38.6]} 20. Rab1 {[%clk 0:01:58.7]} 20... Rab8 {[%clk
0:01:33.5]} 21. Bd5 {[%clk 0:01:48.1]} 21... e6 {[%clk 0:01:31.1]} 22. Bb3
{[%clk 0:01:47.1]} 22... Rfd8 {[%clk 0:01:20.2]} 23. h4 {[%clk 0:01:45.5]} 23...
Qa5 {[%clk 0:01:16]} 24. Rxd8+ {[%clk 0:01:24.6]} 24... Rxd8 {[%clk 0:01:14.8]}
25. Rd1 {[%clk 0:01:25.5]} 25... h5 {[%clk 0:01:08.7]} 26. Qf3 {[%clk
0:01:07.3]} 26... Rxd1+ {[%clk 0:01:06.8]} 27. Qxd1 {[%clk 0:01:07.1]} 27... Bf6
{[%clk 0:01:03.7]} 28. Qd7 {[%clk 0:00:59.8]} 28... Qe1+ {[%clk 0:01:00.5]} 29.
Kg2 {[%clk 0:00:58.6]} 29... Qe2+ {[%clk 0:00:59.7]} 30. Kg1 {[%clk 0:00:46.4]}
30... Qe3+ {[%clk 0:00:59.2]} 31. Kg2 {[%clk 0:00:45.2]} 31... Qe4+ {[%clk
0:00:59.2]} 32. Kf1 {[%clk 0:00:22]} 32... Qxf4+ {[%clk 0:00:57.5]} 33. Ke2
{[%clk 0:00:22.9]} 33... Qe4+ {[%clk 0:00:56.6]} 34. Kd1 {[%clk 0:00:21.1]}
34... Bxh4 {[%clk 0:00:54.5]} 35. Qe8+ {[%clk 0:00:19.7]} 35... Kg7 {[%clk
0:00:54]} 36. Qb5 {[%clk 0:00:12.3]} 36... Bf6 {[%clk 0:00:50.2]} 37. Qf1 {[%clk
0:00:09.5]} 37... h4 {[%clk 0:00:48.3]} 38. Bc2 {[%clk 0:00:08.1]} 38... Qd4+
{[%clk 0:00:47.8]} 39. Kc1 {[%clk 0:00:05.1]} 39... Qa1+ {[%clk 0:00:46.8]} 40.
Bb1 {[%clk 0:00:02.9]} 40... Qc3+ {[%clk 0:00:40.6]} 41. Bc2 {[%clk 0:00:02.7]}
41... h3 {[%clk 0:00:35]} 42. Qe2 {[%clk 0:00:01.5]} 42... Qa1+ {[%clk
0:00:29.8]} 43. Bb1 {[%clk 0:00:01.7]} 43... Qc3+ {[%clk 0:00:28.4]} 44. Kd1
{[%clk 0:00:01.5]} 44... Qg3 {[%clk 0:00:27.4]} 0-1

[Event "*** SCC Grand Prix: Titled Tuesday Blitz"]
[Site "Chess.com"]
[Date "2020.10.06"]
[Round "6"]
[White "bratkoo"]
[Black "Cocaino74"]
[Result "1/2-1/2"]
[WhiteElo "2548"]
[BlackElo "2379"]
[TimeControl "180+1"]
[EndTime "11:08:21 PDT"]
[Termination "Game drawn by stalemate"]

1. h3 {[%clk 0:03:00.9]} 1... e5 {[%clk 0:02:57.9]} 2. g4 {[%clk 0:03:00.8]}
2... d5 {[%clk 0:02:54.2]} 3. d4 {[%clk 0:03:00.3]} 3... exd4 {[%clk 0:02:52.5]}
4. Qxd4 {[%clk 0:02:58.7]} 4... Nc6 {[%clk 0:02:52.3]} 5. Qd1 {[%clk 0:02:58.7]}
5... Bc5 {[%clk 0:02:44.8]} 6. Bg2 {[%clk 0:02:58.3]} 6... Be6 {[%clk
0:02:35.5]} 7. Nc3 {[%clk 0:02:57.8]} 7... h5 {[%clk 0:02:31.2]} 8. g5 {[%clk
0:02:51.6]} 8... Nge7 {[%clk 0:02:27.3]} 9. a3 {[%clk 0:02:46.5]} 9... a5 {[%clk
0:02:12.7]} 10. Nf3 {[%clk 0:02:30.3]} 10... Qd7 {[%clk 0:02:07]} 11. Bf4 {[%clk
0:02:28.7]} 11... Ng6 {[%clk 0:02:05.3]} 12. Bh2 {[%clk 0:02:28.7]} 12... O-O-O
{[%clk 0:01:57.5]} 13. h4 {[%clk 0:02:19.4]} 13... Bg4 {[%clk 0:01:28.9]} 14.
Bg3 {[%clk 0:02:15.9]} 14... Rhe8 {[%clk 0:01:25.3]} 15. Qd2 {[%clk 0:02:16.1]}
15... d4 {[%clk 0:01:17.2]} 16. Nb5 {[%clk 0:02:10]} 16... Nce5 {[%clk
0:00:48.9]} 17. Qxa5 {[%clk 0:02:00.6]} 17... Kb8 {[%clk 0:00:19.4]} 18. O-O-O
{[%clk 0:01:27.1]} 18... Bb6 {[%clk 0:00:14.9]} 19. Qa4 {[%clk 0:01:22.5]} 19...
Nxf3 {[%clk 0:00:10]} 20. exf3 {[%clk 0:01:22.2]} 20... Bf5 {[%clk 0:00:08.1]}
21. Rhe1 {[%clk 0:00:59.8]} 21... Rxe1 {[%clk 0:00:07.7]} 22. Rxe1 {[%clk
0:00:59.8]} 22... d3 {[%clk 0:00:08.5]} 23. Rd1 {[%clk 0:00:47.3]} 23... d2+
{[%clk 0:00:03.4]} 24. Kb1 {[%clk 0:00:47.6]} 24... Qc6 {[%clk 0:00:02.7]} 25.
Nc3 {[%clk 0:00:17.6]} 25... Qxa4 {[%clk 0:00:02.5]} 26. Nxa4 {[%clk 0:00:18.5]}
26... Ne7 {[%clk 0:00:02.3]} 27. Nxb6 {[%clk 0:00:18.4]} 27... Ka7 {[%clk
0:00:01.6]} 28. Nc4 {[%clk 0:00:18.7]} 28... b5 {[%clk 0:00:01.6]} 29. Rxd2
{[%clk 0:00:19.2]} 29... Rc8 {[%clk 0:00:01.6]} 30. Ne3 {[%clk 0:00:19]} 30...
c5 {[%clk 0:00:01.9]} 31. Nxf5 {[%clk 0:00:19]} 31... Nxf5 {[%clk 0:00:02.8]}
32. Rd7+ {[%clk 0:00:18.5]} 32... Kb6 {[%clk 0:00:03.4]} 33. Rxf7 {[%clk
0:00:19.1]} 33... Nd4 {[%clk 0:00:04]} 34. c3 {[%clk 0:00:19]} 34... Ne2 {[%clk
0:00:04.2]} 35. Kc2 {[%clk 0:00:18.7]} 35... b4 {[%clk 0:00:04]} 36. Bf1 {[%clk
0:00:19.1]} 36... Ng1 {[%clk 0:00:03.6]} 37. Bc4 {[%clk 0:00:18.5]} 37... Nxf3
{[%clk 0:00:03.7]} 38. Rxf3 {[%clk 0:00:17.6]} 38... b3+ {[%clk 0:00:04.1]} 39.
Kxb3 {[%clk 0:00:17.9]} 39... Rd8 {[%clk 0:00:04.9]} 40. Kc2 {[%clk 0:00:18.8]}
40... Ka5 {[%clk 0:00:05.3]} 41. Rf7 {[%clk 0:00:18.9]} 41... g6 {[%clk
0:00:05.7]} 42. Bc7+ {[%clk 0:00:19.3]} 42... Ka4 {[%clk 0:00:05]} 43. Bxd8
{[%clk 0:00:20.2]} 1/2-1/2